bitfinex/quotes_BTCUSD_20251114
["timestamp","ask_amount","ask_price","bid_price","bid_amount"]
[1763108942662,0.20623533,96977.0,96970.0,0.02]
[1763108942874,0.22137099,96979.0,96976.0,0.0927123]
[1763108943130,0.01514,96979.0,96976.0,0.0927123]
[1763108943321,0.2062217,96983.0,96976.0,0.0927123]
[1763108943550,0.2062217,96983.0,96970.0,0.02]
[1763108943551,0.20621533,96986.0,96977.0,0.0927123]
[1763108943798,0.20623021,96979.0,96978.0,0.00927123]
[1763108944005,0.20620469,96993.0,96980.0,0.02]
[1763108944220,0.03586,96995.0,96983.0,0.20622064]
[1763108944221,0.01156,96995.0,96983.0,0.20622064]
[1763108944437,0.01156,96995.0,96980.0,0.02]
[1763108944650,0.01156,96995.0,96981.0,0.01219835]
[1763108944891,0.21832469,96992.0,96989.0,0.20620879]
[1763108945090,0.01212,96992.0,96989.0,0.20620879]
[1763108945299,0.01212,96992.0,96991.0,0.20620469]
[1763108946179,0.01156,96995.0,96994.0,0.20619832]
[1763108946333,0.01156,96995.0,96990.0,0.22620657]
[1763108946334,0.20620318,96992.0,96990.0,0.02]
[1763108946732,0.20620318,96992.0,96991.0,0.02262137]
[1763108947117,0.02726,96991.0,96990.0,0.02]
[1763108947305,0.02726,96991.0,96940.0,0.3827991]
[1763108947306,0.20625462,96968.0,96940.0,0.3827991]
[1763108947627,0.20624764,96971.0,96970.0,0.02]
[1763108948255,0.2215375,96971.0,96960.0,0.02]
[1763108948400,0.2215375,96971.0,96954.0,0.29899528]
[1763108948401,0.20626637,96962.0,96961.0,0.03189953]
[1763108948604,0.20627773,96957.0,96954.0,0.0927123]
[1763108949265,0.20628032,96956.0,96954.0,0.0927123]
[1763108949583,0.20628032,96956.0,96950.0,0.02]
[1763108949584,0.20628977,96951.0,96950.0,0.02]
[1763108949786,0.20628977,96951.0,96931.0,0.1457]
[1763108949787,0.20629742,96948.0,96931.0,0.13505777]
[1763108950003,0.20628794,96952.0,96950.0,0.02]
[1763108950130,0.20628794,96952.0,96951.0,0.02262949]
[1763108950743,0.20628794,96952.0,96950.0,0.02]
[1763108950744,0.22157794,96952.0,96950.0,0.02]
[1763108950980,0.01529,96951.0,96940.0,0.02]
[1763108951179,0.20630293,96945.0,96940.0,0.22631262]
[1763108951436,0.20630293,96945.0,96940.0,0.02]
[1763108951633,0.01529,96951.0,96940.0,0.02]
[1763108951821,0.001,96952.0,96948.0,0.0927123]
[1763108952021,0.002,96952.0,96950.0,0.22629141]
[1763108952231,0.001,96952.0,96950.0,0.22629141]
[1763108952431,0.20625821,96966.0,96959.0,0.20627275]
[1763108952633,0.20626263,96964.0,96959.0,0.20627275]
[1763108952870,0.20626695,96962.0,96959.0,0.20627275]
[1763108953078,0.20626689,96962.0,96958.0,0.20627414]
[1763108953249,0.20626292,96964.0,96958.0,0.20627414]
[1763108953469,0.21834501,96973.0,96950.0,0.02]
[1763108953470,0.20625947,96966.0,96950.0,0.02]
[1763108953611,0.20625986,96966.0,96961.0,0.20626641]
[1763108954026,0.20626019,96965.0,96962.0,0.20626617]
[1763108954335,0.20626019,96965.0,96962.0,0.20626624]
[1763108954513,0.0121,96973.0,96960.0,0.02]
[1763108954514,0.20626662,96962.0,96960.0,0.02]
[1763108955527,0.001,96966.0,96951.0,0.21849026]
[1763108955733,0.20628185,96955.0,96952.0,0.07237872]
[1763108956050,0.20627424,96959.0,96952.0,0.07237872]
[1763108956214,0.001,96962.0,96960.0,0.20626877]
[1763108956573,0.001,96962.0,96960.0,0.22626877]
[1763108957005,0.001,96962.0,96958.0,0.20627035]
[1763108957006,0.20628525,96954.0,96951.0,0.01220076]
[1763108957212,0.01529,96961.0,96951.0,0.01220076]
[1763108957213,0.0121,96959.0,96951.0,0.2184884]
[1763108957420,0.0121,96959.0,96952.0,0.23940771]
[1763108957630,0.20628433,96954.0,96952.0,0.03312007]
[1763108958049,0.20628615,96953.0,96951.0,0.01220076]
[1763108959096,0.01529,96952.0,96951.0,0.01220076]
[1763108959297,0.20627625,96958.0,96951.0,0.01220076]
[1763108959298,0.001,96959.0,96957.0,0.20627514]
[1763108959519,0.20626051,96965.0,96960.0,0.20626942]
[1763108959655,0.20626454,96963.0,96961.0,0.04125446]
[1763108959861,0.38279485,96980.0,96965.0,0.20625964]
[1763108959862,0.20625333,96969.0,96965.0,0.20625964]
[1763108960081,0.20625333,96969.0,96963.0,0.0927123]
[1763108960282,0.20625432,96968.0,96965.0,0.20625924]
[1763108960493,0.20625333,96969.0,96965.0,0.20625879]
[1763108960700,0.20625333,96969.0,96965.0,0.25878345]
[1763108960904,0.2062451,96972.0,96965.0,0.05252362]
[1763108961109,0.20624921,96971.0,96970.0,0.02]
[1763108961306,0.20623916,96975.0,96970.0,0.02]
[1763108961661,0.20623371,96978.0,96971.0,0.206247]
[1763108961868,0.20624138,96974.0,96972.0,0.06912674]
[1763108962102,0.2062451,96972.0,96970.0,0.02]
[1763108962905,0.0121,96973.0,96970.0,0.02]
[1763108963100,0.02391,96993.0,96970.0,0.02]
[1763108963315,0.02391,96990.0,96970.0,0.02]
[1763108963439,0.20623595,96977.0,96970.0,0.02]
[1763108963665,0.206242,96974.0,96970.0,0.02]
[1763108963868,0.20624328,96973.0,96971.0,0.06387665]
[1763108964126,0.20624328,96973.0,96967.0,0.20625457]
[1763108964127,0.0121,96971.0,96963.0,0.0927123]
[1763108964336,0.206261,96965.0,96963.0,0.0927123]
[1763108964658,0.01529,96964.0,96963.0,0.0927123]
[1763108965041,0.0121,96971.0,96967.0,0.2062557]
[1763108965244,0.21834722,96971.0,96970.0,0.001]
[1763108965644,0.21834722,96971.0,96968.0,0.05052301]
[1763108965645,0.20625148,96969.0,96968.0,0.05052301]
[1763108966235,0.20078581,96969.0,96968.0,0.05052301]
[1763108966441,0.21607581,96969.0,96968.0,0.05052301]
[1763108966645,0.01529,96969.0,96950.0,0.02]
[1763108966853,0.20628144,96955.0,96950.0,0.02]
[1763108967058,0.20627832,96957.0,96950.0,0.02]
[1763108967263,0.002,96969.0,96950.0,0.02]
[1763108967264,0.003,96969.0,96950.0,0.02]
[1763108967476,0.002,96969.0,96964.0,0.0927123]
[1763108967682,0.002,96969.0,96967.0,0.20625379]
[1763108968091,0.002,96969.0,96968.0,0.2062536]
[1763108968477,0.0121,96971.0,96964.0,0.29897338]
[1763108968478,0.20625732,96967.0,96964.0,0.29897338]
[1763108968682,0.0121,96971.0,96965.0,0.2062596]
[1763108968683,0.001,96969.0,96965.0,0.2062596]
[1763108968863,0.001,96969.0,96968.0,0.2062536]
[1763108969090,0.0121,96971.0,96970.0,0.20624935]
[1763108969264,0.20624369,96973.0,96966.0,0.23815373]
[1763108969508,0.20624369,96973.0,96968.0,0.2062536]
[1763108969509,0.002,96969.0,96968.0,0.2062536]
[1763108969869,0.003,96969.0,96968.0,0.2062536]
[1763108970070,0.001,96969.0,96968.0,0.30121773]
[1763108970742,0.20620941,96989.0,96978.0,0.20623158]
[1763108970743,0.20621647,96986.0,96978.0,0.20623158]
[1763108970958,0.20621647,96986.0,96982.0,0.20622246]
[1763108971166,0.01031034,96990.0,96981.0,0.0927123]
[1763108971167,0.20622383,96982.0,96981.0,0.0927123]
[1763108971381,0.01555,96982.0,96952.0,0.01249131]
[1763108971615,0.20624722,96971.0,96970.0,0.02]
[1763108971763,0.20625999,96965.0,96960.0,0.02]
[1763108971965,0.20625999,96965.0,96960.0,0.22627055]
[1763108972168,0.01555,96967.0,96960.0,0.22627055]
[1763108972374,0.22180999,96965.0,96960.0,0.02]
[1763108972600,0.22180999,96965.0,96964.0,0.10398353]
[1763108972995,0.22280999,96965.0,96964.0,0.10398353]
[1763108974024,0.22380999,96965.0,96964.0,0.10398353]
[1763108974262,0.22014728,96965.0,96964.0,0.10398353]
[1763108974570,0.22114728,96965.0,96964.0,0.10398353]
[1763108975560,0.002,96965.0,96964.0,0.31024564]
[1763108975759,0.002,96965.0,96964.0,0.10398353]
[1763108976583,0.20825999,96965.0,96964.0,0.10398353]
[1763108976810,0.002,96965.0,96964.0,0.10398353]
[1763108976962,0.20825999,96965.0,96964.0,0.10398353]
[1763108977287,0.002,96965.0,96964.0,0.10398353]
[1763108977491,0.002,96965.0,96964.0,0.31024564]
[1763108981245,0.002,96965.0,96964.0,0.44530341]
[1763108985054,0.002,96965.0,96964.0,0.31024564]
[1763108991190,0.002,96965.0,96964.0,0.44530341]
[1763108994484,0.22380999,96965.0,96964.0,0.2390413]
[1763108994604,0.01755,96965.0,96964.0,0.10398353]
[1763108994806,0.002,96965.0,96964.0,0.31024564]
[1763108995412,0.002,96965.0,96964.0,0.10398353]
[1763108996652,0.20825999,96965.0,96964.0,0.10398353]
[1763108997054,0.002,96965.0,96964.0,0.10398353]
[1763108997259,0.20825999,96965.0,96964.0,0.10398353]
[1763108997642,0.002,96965.0,96964.0,0.31024564]
[1763108998452,0.002,96965.0,96964.0,0.10398353]
[1763108998655,0.20825999,96965.0,96964.0,0.10398353]
[1763108999241,0.002,96965.0,96964.0,0.10398353]
[1763108999619,0.002,96965.0,96964.0,0.31024564]
[1763109001348,0.01769,96965.0,96951.0,0.13505777]
[1763109001566,0.002,96965.0,96958.0,0.0927123]
[1763109001748,0.20626683,96962.0,96960.0,0.02]
[1763109001962,0.206268,96962.0,96960.0,0.02]
[1763109002344,0.20623549,96977.0,96960.0,0.05189951]
[1763109002551,0.01030927,97000.0,96973.0,0.0927123]
[1763109002552,0.01156,96995.0,96973.0,0.0927123]
[1763109002756,0.01156,96995.0,96980.0,0.02]
[1763109002982,0.20623868,96976.0,96973.0,0.0927123]
[1763109003210,0.20623995,96975.0,96973.0,0.0927123]
[1763109003356,0.20624084,96974.0,96973.0,0.0927123]
[1763109003557,0.23361084,96974.0,96973.0,0.10398353]
[1763109003761,0.20623899,96975.0,96973.0,0.10398353]
[1763109003762,0.20623905,96975.0,96973.0,0.10398353]
[1763109004109,0.20624797,96971.0,96970.0,0.02]
[1763109004283,0.02737,96974.0,96970.0,0.02]
[1763109004493,0.23361516,96974.0,96970.0,0.02]
[1763109004871,0.23361516,96974.0,96958.0,0.0927123]
[1763109004872,0.22193935,96971.0,96951.0,0.0927123]
[1763109005204,0.01168,96974.0,96966.0,0.0927123]
[1763109005358,0.001,96974.0,96970.0,0.02]
[1763109005567,0.001,96974.0,96966.0,0.0927123]
[1763109005767,0.001,96974.0,96953.0,0.21680383]
[1763109005768,0.01569,96967.0,96953.0,0.01052036]
[1763109005992,0.02737,96954.0,96953.0,0.01052036]
[1763109006763,0.0103114,96980.0,96953.0,0.01052036]
[1763109006966,0.0103114,96980.0,96954.0,0.01232327]
[1763109006967,0.20627565,96958.0,96954.0,0.01232327]
[1763109007167,0.2062796,96956.0,96954.0,0.01232327]
[1763109007375,0.20628339,96954.0,96951.0,0.0927123]
[1763109007577,0.22197764,96952.0,96951.0,0.0927123]
[1763109008959,0.22497764,96952.0,96951.0,0.0927123]
[1763109009172,0.20928764,96952.0,96951.0,0.0927123]
[1763109010009,0.003,96952.0,96951.0,0.0927123]
[1763109010336,0.003,96952.0,96951.0,0.10198353]
[1763109010525,0.003,96952.0,96951.0,0.3082733]
[1763109010947,0.003,96952.0,96951.0,0.10198353]
[1763109011154,0.003,96952.0,96951.0,0.3082733]
[1763109011491,0.001,96952.0,96951.0,0.3082733]
[1763109011672,0.002,96952.0,96951.0,0.3082733]
[1763109012135,0.001,96952.0,96951.0,0.3082733]
[1763109012356,0.21791446,96978.0,96960.0,0.02]
[1763109012586,0.01168,96978.0,96968.0,0.0927123]
[1763109012795,0.01211,96988.0,96977.0,0.20623433]
[1763109012966,0.20622661,96981.0,96977.0,0.20623433]
[1763109013182,0.20623026,96979.0,96977.0,0.20623433]
[1763109013417,0.04308411,96991.0,96982.0,0.20622224]
[1763109013618,0.20621382,96987.0,96984.0,0.0927123]
[1763109013821,0.20621545,96986.0,96985.0,0.03189338]
[1763109014029,0.20622596,96981.0,96980.0,0.02]
[1763109014217,0.20622596,96981.0,96960.0,0.02]
[1763109014218,0.20624935,96970.0,96960.0,0.02]
[1763109014611,0.20623586,96977.0,96968.0,0.29896557]
[1763109014825,0.01211,96970.0,96962.0,0.20626467]
[1763109015034,0.02864,96970.0,96960.0,0.02]
[1763109015191,0.02864,96970.0,96969.0,0.0927123]
[1763109015380,0.23588939,96970.0,96969.0,0.0927123]
[1763109015974,0.01311,96970.0,96969.0,0.0927123]
[1763109016174,0.001,96970.0,96969.0,0.0927123]
[1763109016367,0.001,96970.0,96969.0,0.18448651]
[1763109016611,0.002,96970.0,96969.0,0.18448651]
[1763109017406,0.002,96970.0,96960.0,0.02]
[1763109017407,0.03064,96970.0,96960.0,0.02]
[1763109017746,0.02864,96961.0,96950.0,0.02]
[1763109017966,0.20625148,96969.0,96960.0,0.02]
[1763109018167,0.20626225,96964.0,96961.0,0.02262823]
[1763109018321,0.20626072,96965.0,96961.0,0.02262823]
[1763109018526,0.2062536,96968.0,96961.0,0.02262823]
[1763109018730,0.2062536,96968.0,96960.0,0.02]
[1763109018731,0.2062536,96968.0,96967.0,0.0927123]
[1763109018991,0.001,96970.0,96967.0,0.0927123]
[1763109019207,0.01212,96991.0,96970.0,0.02]
[1763109019208,0.20623986,96975.0,96970.0,0.02]
[1763109019384,0.23720309,96977.0,96972.0,0.20624499]
[1763109019632,0.20624722,96971.0,96970.0,0.02]
[1763109019836,0.20624722,96971.0,96970.0,0.05189696]
[1763109020258,0.21835383,96973.0,96970.0,0.05189696]
[1763109020531,0.01653,96971.0,96970.0,0.02]
[1763109020752,0.20630467,96944.0,96920.0,0.01031778]
[1763109020964,0.21841467,96944.0,96920.0,0.01031778]
[1763109021179,0.23494467,96944.0,96930.0,0.20633253]
[1763109021342,0.23494467,96944.0,96928.0,0.20633723]
[1763109021543,0.20630356,96945.0,96930.0,0.20633429]
[1763109021721,0.20630356,96945.0,96937.0,0.20631939]
[1763109021932,0.20630356,96945.0,96938.0,0.0927123]
[1763109022127,0.002,96944.0,96938.0,0.0927123]
[1763109022330,0.002,96944.0,96943.0,0.2065477]
[1763109022537,0.20630467,96944.0,96943.0,0.00024091]
[1763109022732,0.20627275,96962.0,96946.0,0.20629892]
[1763109022955,0.20629774,96948.0,96944.0,0.20630323]
[1763109023199,0.20629595,96949.0,96945.0,0.05055683]
[1763109023390,0.20627488,96959.0,96945.0,0.05055683]
[1763109023594,0.20629459,96949.0,96945.0,0.05055683]
[1763109023739,0.20629819,96948.0,96945.0,0.05055683]
[1763109023939,0.02458,96967.0,96945.0,0.05055683]
[1763109024214,0.02458,96967.0,96944.0,0.20630289]
[1763109024354,0.2063,96947.0,96943.0,0.00024091]
[1763109024565,0.03669,96960.0,96943.0,0.00024091]
[1763109024757,0.002,96949.0,96947.0,0.20629655]
[1763109025397,0.20629489,96949.0,96944.0,0.20630467]
[1763109025595,0.2063027,96945.0,96943.0,0.00024091]
[1763109025797,0.2063027,96945.0,96943.0,0.00953623]
[1763109026455,0.2063027,96945.0,96943.0,0.00024091]
[1763109027828,0.2073027,96945.0,96943.0,0.00024091]
[1763109028045,0.2083027,96945.0,96943.0,0.00024091]
[1763109028252,0.002,96945.0,96943.0,0.00024091]
[1763109028480,0.002,96945.0,96943.0,0.20654685]
[1763109028675,0.002,96945.0,96944.0,0.27749314]
[1763109029378,0.001,96945.0,96944.0,0.27749314]
[1763109029826,0.20627376,96959.0,96952.0,0.20628682]
[1763109030032,0.20627753,96957.0,96954.0,0.29899504]
[1763109030325,0.20625984,96966.0,96954.0,0.16386956]
[1763109030583,0.20626081,96965.0,96954.0,0.0927123]
[1763109030788,0.04341874,96987.0,96954.0,0.0927123]
[1763109030789,0.20625763,96967.0,96954.0,0.0927123]
[1763109031090,0.01218,96977.0,96943.0,0.00024091]
[1763109031091,0.02834,96955.0,96943.0,0.00024091]
[1763109031294,0.55764467,96944.0,96943.0,0.00024091]
[1763109032446,0.60106341,96944.0,96943.0,0.00024091]
[1763109033053,0.55764467,96944.0,96943.0,0.00024091]
[1763109033286,0.65035697,96944.0,96943.0,0.00024091]
[1763109033893,0.69377571,96944.0,96943.0,0.00024091]
[1763109034126,0.69377571,96944.0,96943.0,9.1e-07]
[1763109036590,0.69377571,96944.0,96900.0,0.01071991]
[1763109036591,0.20639621,96901.0,96900.0,0.0004]
[1763109036760,0.23473621,96901.0,96900.0,0.0004]
[1763109036966,0.01218,96915.0,96900.0,0.0004]
[1763109037172,0.20638913,96905.0,96903.0,0.0927123]
[1763109037526,0.2063839,96907.0,96903.0,0.0927123]
[1763109037737,0.20637334,96912.0,96904.0,0.05059051]
[1763109037956,0.20637128,96913.0,96903.0,0.0927123]
[1763109037957,0.20637988,96909.0,96905.0,0.20638769]
[1763109038157,0.20637549,96911.0,96905.0,0.20638769]
[1763109038158,0.20637596,96911.0,96905.0,0.20638769]
[1763109038382,0.20637489,96912.0,96904.0,0.2063893]
[1763109038558,0.20637389,96912.0,96903.0,0.0927123]
[1763109038782,0.01218,96915.0,96903.0,0.0927123]
[1763109038980,0.01218,96922.0,96911.0,0.20637387]
[1763109039177,0.20636996,96914.0,96907.0,0.20638321]
[1763109039640,0.20636996,96914.0,96909.0,0.20637897]
[1763109039845,0.01218,96922.0,96905.0,0.20638769]
[1763109040047,0.0102375,96925.0,96918.0,0.0927123]
[1763109040342,0.0102375,96925.0,96923.0,0.20634844]
[1763109040534,0.20635362,96921.0,96911.0,0.2063741]
[1763109040686,0.02295,96932.0,96903.0,0.0927123]
[1763109040687,0.20635301,96922.0,96920.0,0.0927123]
[1763109041094,0.01218,96935.0,96920.0,0.0927123]
[1763109041275,0.2063361,96930.0,96921.0,0.00927123]
[1763109041478,0.001,96925.0,96924.0,0.2063457]
[1763109041893,0.01218,96935.0,96924.0,0.2063457]
[1763109042106,0.01218,96935.0,96926.0,0.20634199]
[1763109042322,0.20633666,96929.0,96923.0,0.2063488]
[1763109042587,0.20633944,96928.0,96923.0,0.2063488]
[1763109042840,0.01218,96935.0,96920.0,0.0927123]
[1763109043243,0.21850595,96935.0,96934.0,0.00024095]
[1763109043677,0.25761595,96935.0,96934.0,0.00024095]
[1763109045040,0.23466595,96935.0,96934.0,0.00024095]
[1763109046426,0.0283,96935.0,96934.0,0.00024095]
[1763109046644,0.2063218,96936.0,96934.0,0.00024095]
[1763109046854,0.52930966,96942.0,96935.0,0.20632382]
[1763109047072,0.20630708,96943.0,96937.0,0.0927123]
[1763109047285,0.20631122,96941.0,96937.0,0.0927123]
[1763109047732,0.20631424,96940.0,96937.0,0.0927123]
[1763109048187,0.20631424,96940.0,96938.0,0.07325859]
[1763109048387,0.20631529,96940.0,96938.0,0.07325859]
[1763109048568,0.20631349,96940.0,96937.0,0.0927123]
[1763109048874,0.20632382,96935.0,96934.0,0.00024095]
[1763109049073,0.20631956,96937.0,96934.0,0.00024095]
[1763109049278,0.20632382,96935.0,96934.0,0.00024095]
[1763109050701,0.21850382,96935.0,96934.0,0.00024095]
[1763109050923,0.21950382,96935.0,96934.0,0.00024095]
[1763109051162,0.23566382,96935.0,96934.0,0.00024095]
[1763109052981,0.20732382,96935.0,96934.0,0.00024095]
[1763109053151,0.23566382,96935.0,96934.0,0.00024095]
[1763109054308,0.23562382,96935.0,96934.0,0.00024095]
[1763109060212,0.22953612,96935.0,96934.0,0.00024095]
[1763109060435,0.55253612,96935.0,96934.0,0.00024095]
[1763109060608,0.20635621,96901.0,96900.0,0.0004]
[1763109060786,0.22189621,96901.0,96900.0,0.0004]
[1763109061386,0.20635621,96901.0,96900.0,0.0004]
[1763109061590,0.21802447,96902.0,96900.0,0.0004]
[1763109061752,0.01163,96902.0,96901.0,0.0927123]
[1763109062570,0.20739621,96901.0,96900.0,0.0004]
[1763109062794,0.22293621,96901.0,96900.0,0.0004]
[1763109063333,0.01163,96902.0,96900.0,0.0004]
[1763109063504,0.01163,96902.0,96901.0,0.0927123]
[1763109063505,0.21802479,96902.0,96901.0,0.0927123]
[1763109063912,0.20639251,96903.0,96901.0,0.0927123]
[1763109064461,0.001,96902.0,96901.0,0.0927123]
[1763109064672,0.001,96902.0,96901.0,0.29910851]
[1763109065077,0.03654,96941.0,96910.0,0.02]
[1763109065280,0.20635648,96920.0,96916.0,0.0927123]
[1763109065511,0.01163,96928.0,96900.0,0.0004]
[1763109065685,0.02717,96901.0,96900.0,0.0004]
[1763109066320,0.02717,96901.0,96900.0,0.00131059]
[1763109067002,0.02713,96901.0,96900.0,0.00131059]
[1763109067866,0.02813,96901.0,96900.0,0.00131059]
[1763109068079,0.01263,96901.0,96900.0,0.00131059]
[1763109068257,0.21902621,96901.0,96900.0,0.00131059]
[1763109068878,0.23444621,96901.0,96900.0,0.00131059]
[1763109070748,0.23444621,96901.0,96864.0,0.1457]
[1763109070749,0.20644735,96877.0,96860.0,0.0004]
[1763109070966,0.22186735,96877.0,96860.0,0.0004]
[1763109071125,0.20646653,96868.0,96860.0,0.0004]
[1763109071328,0.54488653,96868.0,96860.0,0.0004]
[1763109071530,0.20648145,96861.0,96860.0,0.0004]
[1763109071730,0.52950277,96851.0,96850.0,0.0004]
[1763109071930,0.55675277,96851.0,96850.0,0.0004]
[1763109072339,0.55675277,96851.0,96840.0,0.0004]
[1763109072340,0.323,96845.0,96840.0,0.0004]
[1763109072545,0.01542,96841.0,96840.0,0.0004]
[1763109072744,0.323,96845.0,96840.0,0.0004]
[1763109072944,0.01032311,96870.0,96840.0,0.0004]
[1763109072945,0.20652117,96844.0,96840.0,0.0004]
[1763109073169,0.01542,96841.0,96840.0,0.0004]
[1763109073370,0.34567,96850.0,96840.0,0.0004]
[1763109073535,0.323,96858.0,96841.0,0.0927123]
[1763109073735,0.20649989,96853.0,96843.0,0.20651877]
[1763109073963,0.323,96856.0,96840.0,0.0204]
[1763109074312,0.20651445,96846.0,96840.0,0.0004]
[1763109074462,0.02267,96850.0,96840.0,0.0004]
[1763109074663,0.01032098,96890.0,96849.0,0.00903]
[1763109074865,0.01032098,96890.0,96850.0,0.03935524]
[1763109074866,0.20645043,96876.0,96850.0,0.03935524]
[1763109075062,0.02267,96879.0,96850.0,0.03935524]
[1763109075063,0.20644721,96878.0,96862.0,0.20647783]
[1763109075268,0.34567,96879.0,96851.0,0.00903]
[1763109075469,0.22679319,96880.0,96862.0,0.20647729]
[1763109075470,0.20645882,96872.0,96862.0,0.20647729]
[1763109075807,0.02267,96878.0,96862.0,0.20647729]
[1763109076062,0.34567,96878.0,96850.0,0.03032524]
[1763109076287,0.21825264,96889.0,96860.0,0.01032417]
[1763109076497,0.33483,96882.0,96877.0,0.00903]
[1763109076700,0.01183,96882.0,96877.0,0.00903]
[1763109076904,0.01183,96882.0,96877.0,0.2154759]
[1763109077121,0.21825264,96889.0,96877.0,0.2154759]
[1763109077122,0.01183,96889.0,96877.0,0.2154759]
[1763109077369,0.01183,96889.0,96881.0,0.20643882]
[1763109077571,0.01183,96889.0,96880.0,0.22643669]
[1763109077775,0.01183,96889.0,96883.0,0.20643349]
[1763109077927,0.01183,96889.0,96887.0,0.20642567]
[1763109078128,0.01183,96889.0,96887.0,0.2064257]
[1763109078361,0.03298991,96900.0,96880.0,0.22643669]
[1763109078362,0.21822737,96901.0,96880.0,0.02]
[1763109078662,0.01183,96901.0,96895.0,0.20640789]
[1763109078890,0.01183,96917.0,96890.0,0.39317486]
[1763109079106,0.01183,96917.0,96900.0,0.02903]
[1763109079107,0.01183,96916.0,96900.0,0.02903]
[1763109079507,0.01031672,96930.0,96913.0,0.20636958]
[1763109079508,0.01183,96924.0,96913.0,0.20636958]
[1763109079638,0.20634937,96923.0,96913.0,0.20636936]
[1763109079848,0.01183,96924.0,96913.0,0.20636936]
[1763109080277,0.01183,96924.0,96910.0,0.02]
[1763109080278,0.01183,96928.0,96922.0,0.20635135]
[1763109080519,0.21816946,96928.0,96920.0,0.20635555]
[1763109080848,0.2181576,96934.0,96920.0,0.20635555]
[1763109080849,0.01183,96934.0,96922.0,0.0927123]
[1763109081046,0.03284269,96948.0,96923.0,0.20634937]
[1763109081273,0.01542,96921.0,96881.0,0.13505777]
[1763109081490,0.0118,96891.0,96873.0,0.0927123]
[1763109081702,0.20641965,96890.0,96873.0,0.0927123]
[1763109081908,0.20643223,96885.0,96881.0,0.00050905]
[1763109082188,0.323,96895.0,96878.0,0.02268]
[1763109082387,0.20641539,96892.0,96891.0,0.0927123]
[1763109082993,0.20641085,96895.0,96891.0,0.0927123]
[1763109083194,0.20641383,96893.0,96892.0,0.00927123]
[1763109083403,0.20641383,96893.0,96891.0,0.0927123]
[1763109083644,0.001,96892.0,96879.0,0.20644308]
[1763109083841,0.20642401,96888.0,96883.0,0.20643249]
[1763109084052,0.20643022,96886.0,96880.0,0.2064389]
[1763109084268,0.001,96892.0,96880.0,0.02268]
[1763109084688,0.20643669,96882.0,96881.0,0.02381631]
[1763109084918,0.20643669,96882.0,96880.0,0.02268]
[1763109085336,0.20643669,96882.0,96877.0,0.00903]
[1763109085337,0.20644521,96878.0,96877.0,0.00903]
[1763109086227,0.20644521,96878.0,96862.0,0.02268]
[1763109086429,0.20645374,96874.0,96869.0,0.00903]
[1763109086651,0.2064508,96876.0,96869.0,0.00903]
[1763109086889,0.20645328,96875.0,96869.0,0.00903]
[1763109088196,0.02268,96880.0,96878.0,0.20644389]
[1763109088407,0.20646226,96870.0,96869.0,0.00903]
[1763109088618,0.20645475,96874.0,96869.0,0.00903]
[1763109088839,0.22912095,96880.0,96879.0,0.0927123]
[1763109089894,0.02268,96880.0,96879.0,0.0927123]
[1763109090162,0.02368,96880.0,96879.0,0.0927123]
[1763109090596,0.20640416,96898.0,96888.0,0.02658]
[1763109090771,0.20640416,96898.0,96890.0,0.20641876]
[1763109090978,0.02754392,96921.0,96894.0,0.0927123]
[1763109091220,0.03694453,96927.0,96894.0,0.12528341]
[1763109091221,0.20638556,96906.0,96894.0,0.12528341]
[1763109091448,0.01201,96913.0,96906.0,0.01]
[1763109091674,0.01201,96922.0,96906.0,0.01]
[1763109091866,0.20636971,96914.0,96909.0,0.0927123]
[1763109092041,0.01201,96922.0,96909.0,0.0921923]
[1763109092248,0.20635936,96919.0,96914.0,0.20636793]
[1763109092558,0.20635936,96919.0,96915.0,0.23622089]
[1763109092904,0.20633862,96929.0,96909.0,0.0921923]
[1763109092905,0.01201,96934.0,96917.0,0.20636013]
[1763109093107,0.01201,96934.0,96918.0,0.01658]
[1763109093311,0.20633809,96929.0,96924.0,0.0927123]
[1763109093432,0.20633509,96930.0,96925.0,0.2063435]
[1763109093653,0.20633823,96929.0,96924.0,0.29905859]
[1763109093849,0.20634171,96927.0,96924.0,0.14056457]
[1763109094085,0.001,96930.0,96912.0,0.02403]
[1763109094362,0.001,96930.0,96900.0,0.38349477]
[1763109094363,0.20634298,96926.0,96924.0,0.0927123]
[1763109094680,0.01201,96932.0,96901.0,0.02403]
[1763109094884,0.20637543,96911.0,96901.0,0.02403]
[1763109095095,0.20637543,96911.0,96904.0,0.20638881]
[1763109095312,0.20636162,96918.0,96911.0,0.2063729]
[1763109095560,0.20636313,96917.0,96912.0,0.03325952]
[1763109095781,0.20636952,96914.0,96912.0,0.03325952]
[1763109095982,0.22883233,96936.0,96907.0,0.2063823]
[1763109095983,0.20636348,96917.0,96907.0,0.2063823]
[1763109096184,0.0225,96936.0,96907.0,0.13505777]
[1763109096409,0.02197855,96939.0,96924.0,0.0927123]
[1763109096641,0.02197855,96939.0,96913.0,0.20636977]
[1763109096642,0.02862157,96938.0,96917.0,0.20636137]
[1763109096890,0.01031565,96940.0,96910.0,0.39720486]
[1763109096891,0.20632812,96933.0,96927.0,0.20633902]
[1763109097126,0.20632828,96933.0,96929.0,0.20633515]
[1763109097328,0.20632169,96936.0,96927.0,0.20633902]
[1763109097504,0.04105919,96935.0,96933.0,0.20632716]
[1763109097706,0.20631514,96940.0,96932.0,0.20632828]
[1763109097707,0.22829634,96938.0,96932.0,0.20632828]
[1763109097906,0.01201,96941.0,96932.0,0.20632828]
[1763109097907,0.04105925,96937.0,96932.0,0.20632828]
[1763109098168,0.01908081,96936.0,96932.0,0.20632828]
[1763109098306,0.01908081,96935.0,96933.0,0.20632743]
[1763109098508,0.01908081,96935.0,96928.0,0.21536863]
[1763109098509,0.02197844,96935.0,96928.0,0.00903]
[1763109098738,0.20633659,96929.0,96928.0,0.00903]
[1763109098981,0.01031459,96950.0,96928.0,0.00903]
[1763109098982,0.2063314,96932.0,96928.0,0.00903]
[1763109099550,0.20632992,96933.0,96929.0,0.20633618]
[1763109099752,0.21832531,96941.0,96928.0,0.00903]
[1763109099952,0.20633491,96930.0,96928.0,0.00903]
[1763109100174,0.20633461,96932.0,96928.0,0.00903]
[1763109100357,0.002,96932.0,96928.0,0.00903]
[1763109100557,0.002,96932.0,96930.0,0.20633409]
[1763109100757,0.01031353,96960.0,96937.0,0.2228985]
[1763109101124,0.20630679,96943.0,96941.0,0.0927123]
[1763109101331,0.03229546,96960.0,96941.0,0.0927123]